bitfinex/quotes_ETHUSD_20241204
["timestamp","ask_amount","ask_price","bid_price","bid_amount"]
[1733293282670,8.20070972,3675.3,3674.7,2.72129]
[1733293283296,7.53320972,3675.2,3674.7,2.72129]
[1733293283693,7.53320972,3675.2,3674.8,2.72123]
[1733293283856,7.53320972,3675.2,3674.4,0.53735925]
[1733293284063,7.53320972,3675.2,3675.0,2.72108]
[1733293284582,7.53320972,3675.2,3675.1,2.72101]
[1733293284765,0.6675,3675.8,3675.1,2.72101]
[1733293285259,0.6675,3675.8,3675.6,2.72063]
[1733293285465,0.6675,3675.8,3675.5,2.72065]
[1733293286079,0.6675,3675.8,3675.0,1.103708]
[1733293286281,0.6675,3675.8,3675.6,2.72062]
[1733293287329,8.20070972,3676.4,3675.6,2.60141742]
[1733293287488,0.6675,3676.4,3676.3,2.72012]
[1733293287670,7.53320972,3677.2,3676.3,2.72012]
[1733293287986,1.09524802,3677.1,3676.3,2.72012]
[1733293288309,1.09524802,3677.1,3675.7,0.8004]
[1733293288536,1.34645819,3677.1,3675.9,2.72041]
[1733293288698,4.34645819,3677.1,3675.9,2.72041]
[1733293289013,7.53320972,3677.0,3676.0,5.32172742]
[1733293289184,7.53320972,3677.0,3676.3,2.60141742]
[1733293289686,7.53320972,3677.0,3676.0,5.32169742]
[1733293290011,0.27900448,3677.1,3676.0,2.60141742]
[1733293290226,0.27900448,3677.1,3676.2,2.72018]
[1733293290510,0.27900448,3677.1,3675.7,4.06853564]
[1733293290511,0.6675,3677.2,3676.4,0.8004]
[1733293290719,0.6675,3677.5,3676.7,5.32122742]
[1733293291323,0.6675,3677.5,3676.9,2.71967]
[1733293291489,0.27999912,3677.8,3676.9,2.71967]
[1733293291678,0.27999912,3677.8,3677.0,5.32100742]
[1733293292038,0.27999912,3677.8,3677.2,2.71944]
[1733293292778,0.6675,3677.9,3677.3,5.32078742]
[1733293292986,8.20070972,3678.6,3677.4,2.71927]
[1733293293215,0.28048536,3678.3,3677.3,2.60141742]
[1733293293419,0.25176831,3678.2,3677.3,2.60141742]
[1733293293713,0.28048536,3678.3,3677.3,2.60141742]
[1733293293880,0.25191469,3678.2,3677.3,2.99211924]
[1733293294083,0.25191469,3678.1,3677.3,2.99211924]
[1733293294319,0.28048536,3678.3,3677.3,2.99211924]
[1733293294488,0.25200974,3678.2,3677.3,2.99211924]
[1733293294688,0.6675,3678.0,3677.3,2.99211924]
[1733293294927,0.6675,3678.0,3677.0,0.53210074]
[1733293295527,0.2521006,3677.9,3677.0,0.53210074]
[1733293295855,0.6675,3678.0,3677.0,0.53210074]
[1733293296019,0.25209875,3677.9,3677.0,0.53210074]
[1733293296355,0.25209875,3677.8,3677.0,0.53210074]
[1733293296515,0.6675,3678.0,3676.9,2.60141742]
[1733293296718,0.25214907,3677.9,3676.9,2.60141742]
[1733293297056,0.25214907,3677.8,3676.9,2.60141742]
[1733293297254,0.25220111,3677.7,3676.9,2.60141742]
[1733293297422,0.6675,3678.0,3676.9,2.60141742]
[1733293297750,1.38448636,3677.9,3676.9,2.60141742]
[1733293297923,0.2521978,3677.8,3676.9,2.60141742]
[1733293298257,8.20070972,3677.6,3676.5,3.37451742]
[1733293298415,0.6675,3677.4,3676.1,3.37301742]
[1733293298616,10.50480752,3677.3,3676.1,2.60141742]
[1733293298818,0.6675,3677.1,3676.1,2.60141742]
[1733293299049,7.78540309,3677.0,3676.1,2.60141742]
[1733293299235,0.25219337,3676.9,3676.1,2.60141742]
[1733293299434,7.53320972,3677.0,3676.0,0.54238523]
[1733293299633,0.25224773,3676.9,3676.0,0.54238523]
[1733293299818,0.25224773,3676.8,3676.0,0.54238523]
[1733293300152,0.25224773,3676.7,3676.0,0.54238523]
[1733293300479,7.53320972,3677.0,3676.0,0.54238523]
[1733293300615,0.2523256,3676.9,3676.0,0.54238523]
[1733293300820,0.2523256,3676.8,3676.0,0.54238523]
[1733293301131,0.9198256,3676.7,3675.7,2.60141742]
[1733293301329,0.2523256,3676.6,3675.7,2.60141742]
[1733293301641,0.2523482,3676.5,3675.7,2.60141742]
[1733293301846,0.6675,3676.7,3675.8,1.14500877]
[1733293302047,0.2523392,3676.6,3675.8,1.14500877]
[1733293302243,0.6675,3676.7,3675.9,2.72041]
[1733293304822,7.53320972,3676.6,3675.8,0.53563603]
[1733293305021,2.71961,3677.0,3674.8,2.60141742]
[1733293305022,0.6675,3675.9,3674.8,2.60141742]
[1733293305250,3.38794,3675.9,3674.8,2.60141742]
[1733293305466,0.6675,3675.9,3675.1,0.5571073]
[1733293305938,0.6675,3675.9,3674.8,5.32263742]
[1733293306259,8.20070972,3675.9,3674.8,5.32263742]
[1733293306560,8.20070972,3675.9,3674.9,3.61464374]
[1733293306927,10.92112972,3675.9,3674.9,3.61464374]
[1733293307629,10.92112972,3675.9,3674.9,3.0]
[1733293308820,7.53320972,3675.8,3674.7,0.5369617]
[1733293309024,10.25371972,3675.8,3674.7,3.5369617]
[1733293309659,10.25371972,3675.8,3674.7,0.5369617]
[1733293310238,0.2523647,3675.7,3674.7,0.5369617]
[1733293310442,10.25371972,3675.8,3674.7,0.5369617]
[1733293310660,0.25232945,3675.7,3674.7,0.5369617]
[1733293310841,11.34584169,3675.8,3674.7,0.5369617]
[1733293311025,8.62533169,3675.8,3674.7,3.2582617]
[1733293311225,7.53320972,3675.8,3674.7,3.2582617]
[1733293314430,0.6675,3675.7,3674.7,0.5369617]
[1733293314755,0.6675,3675.4,3674.4,3.0]
[1733293314954,0.6675,3675.4,3674.4,3.55496705]
[1733293317129,3.38829,3675.4,3674.4,0.55496705]
[1733293317335,1.09214997,3675.4,3674.3,3.0]
[1733293317566,0.6675,3675.3,3674.3,3.0]
[1733293317878,0.6675,3675.3,3674.2,5.87392841]
[1733293318175,8.20070972,3675.3,3674.2,5.87392841]
[1733293319037,0.6675,3675.2,3674.2,5.87392841]
[1733293320050,0.6675,3675.2,3674.3,2.72159]
[1733293320353,0.6675,3675.2,3674.3,0.34596376]
[1733293320734,0.6675,3675.2,3674.3,3.06756376]
[1733293321482,0.6675,3675.2,3674.3,0.34596376]
[1733293321841,0.6675,3675.2,3674.2,5.87392841]
[1733293322777,2.72094,3675.2,3674.2,0.55084099]
[1733293322948,0.6675,3675.1,3674.2,0.55084099]
[1733293323598,8.20070972,3674.9,3673.7,6.07400742]
[1733293323742,8.20070972,3674.9,3674.1,0.55020834]
[1733293323946,8.20070972,3674.8,3674.1,0.55020834]
[1733293324132,0.6675,3674.6,3673.3,2.60141742]
[1733293324466,0.6675,3674.6,3673.9,0.53479314]
[1733293324678,0.6675,3674.5,3673.9,0.53479314]
[1733293325530,0.6675,3674.5,3673.5,0.54269139]
[1733293325732,0.6675,3674.5,3673.5,1.20487727]
[1733293325941,0.6675,3674.5,3673.6,2.72212]
[1733293327269,8.20070972,3674.5,3673.6,2.72212]
[1733293327567,8.20070972,3674.5,3673.7,2.72204]
[1733293327864,8.20070972,3674.5,3673.5,0.66218588]
[1733293328073,8.20070972,3674.5,3673.3,2.60141742]
[1733293328074,0.6675,3674.4,3673.4,3.2601739]
[1733293328240,0.6675,3674.3,3673.4,3.2601739]
[1733293328441,0.6675,3674.3,3673.4,0.5379739]
[1733293329038,0.6675,3674.3,3673.3,2.60141742]
[1733293329354,0.6675,3674.3,3673.3,5.32374742]
[1733293330637,0.6675,3673.9,3672.9,2.60141742]
[1733293330867,0.6675,3673.9,3673.2,2.72242]
[1733293331178,0.6675,3673.9,3673.1,2.72249]
[1733293331359,0.6675,3673.9,3673.0,0.54244157]
[1733293331547,0.6675,3673.9,3673.2,2.72237]
[1733293333370,0.6675,3673.9,3673.0,0.54244157]
[1733293333571,0.6675,3673.9,3673.2,2.72241]
[1733293333781,0.6675,3673.9,3673.0,2.72256]
[1733293334079,0.6675,3673.8,3673.0,2.72256]
[1733293334580,0.6675,3673.6,3672.4,2.72301]
[1733293334874,0.6675,3673.6,3672.4,0.53639491]
[1733293335168,0.6675,3673.6,3672.6,2.72286]
[1733293335684,0.6675,3673.6,3672.6,2.72284]
[1733293335886,0.6675,3673.4,3672.6,2.72284]
[1733293337309,0.6675,3673.4,3672.4,3.25940491]
[1733293337611,0.6675,3673.3,3672.2,2.60141742]
[1733293337774,2.72228,3673.4,3672.0,3.27608075]
[1733293337775,0.6675,3673.1,3672.0,3.27608075]
[1733293338110,0.6675,3673.1,3672.1,2.72322]
[1733293338913,0.6675,3673.0,3671.4,3.7872]
[1733293339208,0.6675,3673.0,3671.7,2.72346]
[1733293339209,0.6675,3672.8,3671.7,2.72346]
[1733293339393,0.6675,3672.8,3671.7,3.27402219]
[1733293339594,0.6675,3672.6,3671.9,2.72336]
[1733293339776,0.6675,3672.6,3671.7,0.55056219]
[1733293340113,0.6675,3672.6,3672.0,2.7233]
[1733293340293,0.6675,3672.6,3671.9,2.72336]
[1733293340919,7.53320972,3672.5,3671.7,0.55056219]
[1733293341074,0.6675,3672.4,3671.6,5.32494742]
[1733293341270,0.6675,3672.4,3671.7,2.72352]
[1733293341915,0.6675,3672.4,3671.8,2.72345]
[1733293342377,0.6675,3672.4,3671.6,2.60141742]
[1733293342707,8.28653069,3672.5,3672.4,2.72301]
[1733293342708,7.53320972,3672.5,3672.4,2.72301]
[1733293342910,0.6675,3673.3,3672.5,2.72294]
[1733293343118,0.6675,3673.3,3673.0,2.72256]
[1733293343614,0.6675,3673.3,3672.8,2.60141742]
[1733293343860,0.6675,3673.3,3673.1,2.72242]
[1733293344014,0.6675,3673.3,3673.2,2.72242]
[1733293344217,0.94763052,3673.7,3673.4,2.72225]
[1733293344411,0.6675,3673.7,3673.4,2.72225]
[1733293344842,0.6675,3673.7,3673.2,2.60141742]
[1733293345055,0.6675,3673.7,3673.5,2.72217]
[1733293347130,0.6675,3673.7,3673.3,2.72232]
[1733293347772,0.6675,3673.7,3673.4,2.72225]
[1733293348701,8.20070972,3673.5,3672.9,2.72263]
[1733293348973,0.6675,3673.4,3672.4,5.32442742]
[1733293349141,0.6675,3673.4,3672.4,2.60141742]
[1733293349347,0.25219417,3673.3,3672.3,2.72308]
[1733293349561,0.6675,3673.1,3672.3,2.72308]
[1733293349730,0.6675,3673.1,3672.1,2.72323]
[1733293350070,0.6675,3673.1,3672.4,2.72301]
[1733293351548,0.6675,3673.1,3672.1,2.72322]
[1733293351737,0.84529039,3673.2,3672.0,2.60141742]
[1733293351738,0.6675,3672.9,3672.0,2.60141742]
[1733293351934,0.81877904,3672.9,3671.6,6.11996742]
[1733293352161,0.81877904,3672.9,3671.9,2.72333]
[1733293352471,0.81877904,3672.9,3671.8,0.54316102]
[1733293352779,0.81877904,3672.9,3671.7,2.7235]
[1733293352780,0.6675,3672.7,3671.7,2.7235]
[1733293352931,0.6675,3672.7,3671.8,2.72345]
[1733293353131,1.50269888,3672.7,3671.8,2.72345]
[1733293353463,1.50269888,3672.7,3671.9,2.72336]
[1733293353677,1.50269888,3672.7,3671.7,2.72351]
[1733293353878,1.50269888,3672.7,3671.6,2.60141742]
[1733293354088,0.6675,3672.7,3671.8,2.72344]
[1733293355240,0.6675,3672.7,3671.6,5.32501742]
[1733293356884,7.53320972,3672.6,3671.6,2.60141742]
[1733293357093,2.72294,3672.5,3671.6,2.60141742]
[1733293357246,0.6675,3672.4,3671.6,2.60141742]
[1733293357589,0.6675,3672.2,3671.6,2.60141742]
[1733293357956,0.6675,3672.2,3671.4,0.53433179]
[1733293358144,0.6675,3672.2,3671.2,2.60141742]
[1733293359806,3.81545497,3672.3,3670.9,0.5457638]
[1733293359807,0.6675,3671.9,3670.9,0.5457638]
[1733293360306,8.20070972,3671.8,3670.8,2.60141742]
[1733293360696,8.35328069,3671.8,3670.8,2.60141742]
[1733293360899,0.6675,3671.7,3670.8,2.60141742]
[1733293361380,0.6675,3671.7,3670.7,3.27574254]
[1733293361381,0.6675,3671.7,3670.7,2.7242]
[1733293362115,0.6675,3671.6,3670.6,2.60141742]
[1733293362413,0.6675,3671.6,3670.4,2.60141742]
[1733293362614,0.6675,3671.4,3670.4,5.32589742]
[1733293362776,0.6675,3671.4,3670.5,2.72441]
[1733293363482,0.6675,3671.4,3670.6,2.7243]
[1733293365534,0.6675,3671.4,3670.7,2.72423]
[1733293365693,0.6675,3671.4,3670.4,3.15584933]
[1733293365899,0.6675,3671.4,3670.9,2.72409]
[1733293366094,0.6675,3671.4,3671.0,2.72401]
[1733293366325,0.6675,3671.4,3670.9,2.60141742]
[1733293366326,0.6675,3671.4,3671.1,2.72396]
[1733293366835,0.6675,3671.4,3670.9,2.60141742]
[1733293367144,0.6675,3671.4,3671.2,2.7239]
[1733293368829,0.6675,3671.4,3670.9,2.60141742]
[1733293369026,7.53320972,3671.6,3671.3,5.32524742]
[1733293369229,0.6675,3671.8,3671.3,5.32524742]
[1733293369406,0.6675,3671.8,3671.6,2.72357]
[1733293370238,0.6675,3671.8,3671.3,2.60141742]
[1733293370645,0.6675,3671.8,3671.7,2.72353]
[1733293374246,7.53320972,3672.1,3672.0,2.72331]
[1733293375562,0.6675,3672.5,3672.0,2.72331]
[1733293375717,0.6675,3672.8,3672.4,2.72301]
[1733293375921,0.27817918,3673.0,3672.7,2.72276]
[1733293376162,0.6675,3673.1,3672.7,2.72276]
[1733293376360,8.45286673,3673.6,3673.1,2.72248]
[1733293376564,0.25215701,3673.5,3673.1,2.72248]
[1733293377057,8.20070972,3673.6,3673.1,2.72248]
[1733293377255,0.84790197,3673.5,3673.1,2.72248]
[1733293377821,8.20070972,3673.6,3672.9,5.32405742]
[1733293378054,8.20070972,3673.6,3673.3,2.60141742]
[1733293378514,8.20070972,3673.6,3672.9,5.32405742]
[1733293379171,8.20070972,3673.6,3673.3,2.72232]
[1733293379366,8.20070972,3673.6,3672.9,5.32405742]
[1733293379526,8.20070972,3673.6,3673.3,2.72231]
[1733293380375,0.6675,3674.0,3673.6,2.72207]
[1733293381165,0.6675,3674.0,3673.8,2.72194]
[1733293381376,0.25238035,3674.3,3673.9,2.60141742]
[1733293381377,8.45309007,3674.3,3673.9,2.60141742]
[1733293381583,8.20070972,3674.3,3674.1,2.72173]
[1733293382645,7.53320972,3674.3,3674.1,2.72173]
[1733293384260,7.53320972,3674.5,3674.1,2.72173]
[1733293384839,7.53320972,3674.5,3673.9,2.60141742]
[1733293385172,0.6675,3674.1,3673.0,2.60141742]
[1733293385669,0.6675,3674.1,3673.2,2.7224]
[1733293386250,0.6675,3674.1,3673.2,2.72236]
[1733293388067,0.6675,3674.1,3673.4,2.60141742]
[1733293389166,0.84796671,3674.5,3673.4,2.60141742]
[1733293389167,0.6675,3674.5,3673.8,2.60141742]
[1733293392905,0.6675,3674.5,3673.5,0.7879]
[1733293393263,7.53320972,3674.4,3673.5,0.7879]
[1733293394468,0.6675,3674.3,3673.4,2.60141742]
[1733293394665,0.6675,3674.3,3673.4,3.17878845]
[1733293394911,7.53320972,3674.4,3673.5,0.806]
[1733293395885,7.53320972,3674.4,3673.8,2.60141742]
[1733293396281,2.7214,3674.6,3673.8,2.60141742]
[1733293396481,2.7214,3674.6,3673.5,0.806]
[1733293396681,0.6675,3674.4,3673.5,0.806]
[1733293397182,0.6675,3674.4,3673.4,2.60141742]
[1733293397429,0.25177827,3674.4,3673.5,0.7872]
[1733293397730,7.53320972,3674.7,3673.5,0.7872]
[1733293397876,0.25188204,3674.6,3673.5,0.7872]
[1733293398085,0.25188204,3674.6,3673.5,3.50938]
[1733293398302,0.2520232,3674.6,3673.5,0.7872]
[1733293398620,10.25452972,3674.7,3673.5,0.7872]
[1733293398834,0.25204155,3674.6,3673.5,0.7872]
[1733293399032,0.25204155,3674.6,3673.5,3.50939]
[1733293399183,0.25204155,3674.6,3673.6,0.61108074]
[1733293399384,7.78525127,3674.6,3673.8,2.60141742]
[1733293399715,7.53320972,3674.6,3673.8,3.39311742]
[1733293400146,7.53320972,3674.6,3673.9,0.7917]
[1733293400648,0.27895733,3674.8,3673.9,0.7917]
[1733293400799,0.27895733,3674.8,3674.3,0.791]
[1733293401372,7.78544747,3675.2,3674.3,3.51259]
[1733293401503,0.25223775,3675.1,3674.4,2.72152]
[1733293401831,0.25223775,3675.1,3674.3,0.791]
[1733293401832,0.25233928,3675.1,3674.3,0.791]
[1733293402249,7.53320972,3675.2,3674.3,0.791]
[1733293402542,0.25243107,3675.1,3674.3,0.791]
[1733293403239,0.25243107,3675.1,3674.3,4.15793992]
[1733293403533,0.25243107,3675.0,3674.3,4.15793992]
[1733293403713,0.25243107,3674.9,3674.3,4.15793992]
[1733293403946,7.53320972,3675.2,3674.3,4.15793992]
[1733293404248,0.25255195,3675.1,3674.3,4.15793992]
[1733293404454,0.25255195,3675.0,3674.3,1.43633992]
[1733293404640,0.25255195,3674.9,3674.3,0.791]
[1733293404847,7.53320972,3675.2,3674.3,0.791]
[1733293405149,0.65715626,3675.1,3674.3,0.791]
[1733293405351,0.65715626,3675.0,3674.3,0.791]
[1733293405652,7.81436858,3675.4,3674.6,2.60141742]
[1733293405857,0.25298158,3675.3,3674.9,0.7682]
[1733293406151,7.53320972,3675.9,3675.0,2.60141742]
[1733293406461,0.53389787,3675.8,3675.4,2.60141742]
[1733293406619,0.28096172,3675.8,3675.4,2.60141742]
[1733293407163,7.93793761,3676.2,3675.5,0.8313]
[1733293407462,0.25278039,3676.1,3675.5,0.8313]
[1733293407618,7.53320972,3676.2,3675.5,0.8313]
[1733293407951,0.25278166,3676.1,3675.5,0.8313]
[1733293408159,7.53320972,3676.2,3675.5,0.8313]
[1733293408160,7.53320972,3676.2,3675.7,2.72055]
[1733293408346,7.53320972,3676.2,3675.5,0.8313]
[1733293408544,0.28094899,3676.3,3675.5,0.8313]
[1733293408545,0.25258614,3676.1,3676.0,2.72033]
[1733293408721,0.65674165,3676.9,3676.1,2.72027]
[1733293408921,0.6675,3677.5,3676.7,2.60141742]
[1733293408922,0.25258614,3676.8,3676.7,2.60141742]
[1733293409123,0.2526415,3677.1,3676.7,2.60141742]
[1733293409361,0.28090603,3677.2,3676.8,0.8313]
[1733293409662,0.25233438,3677.1,3676.8,0.8313]
[1733293409865,0.28090603,3677.2,3676.8,0.8313]
[1733293411581,0.28090603,3677.2,3676.3,3.54376]
[1733293411582,0.94840603,3677.2,3676.3,3.54376]
[1733293411738,0.94840603,3677.2,3676.3,1.23352414]
[1733293412188,0.94840603,3677.2,3676.3,0.8237]
[1733293412687,7.53320972,3677.1,3676.0,0.7638]
[1733293412839,10.25275972,3677.1,3676.0,0.7638]
[1733293413036,0.251613,3677.0,3676.0,0.7638]
[1733293413236,2.971243,3677.0,3676.0,0.7638]
[1733293413463,0.251613,3676.9,3676.0,0.7638]
[1733293413855,2.971303,3676.9,3676.0,0.7638]
[1733293414074,1.14528587,3677.0,3676.0,0.7638]
[1733293414266,2.71977,3676.8,3676.0,0.7638]
[1733293415508,3.86489587,3677.0,3676.0,0.7638]
[1733293415671,1.46563531,3676.9,3676.0,0.7638]
[1733293415875,1.21427133,3676.9,3676.0,0.7638]
[1733293417207,3.93397133,3676.9,3676.0,0.7638]
[1733293417380,7.78455852,3676.8,3676.0,0.7638]
[1733293417576,7.53320972,3676.8,3676.0,0.7638]
[1733293417826,7.42320972,3676.8,3676.0,0.7638]
[1733293418329,7.42320972,3676.7,3675.5,6.25045934]
[1733293418613,3.63876598,3676.6,3675.6,0.8231]
[1733293418902,3.63877242,3676.6,3675.6,0.8231]
[1733293419133,3.3874,3676.6,3675.6,0.8231]
[1733293419883,0.25137494,3676.5,3675.6,0.8231]
[1733293420631,0.6675,3676.6,3675.6,0.8231]
[1733293420833,0.91891223,3676.6,3675.6,0.8231]
[1733293421122,2.71999,3676.5,3675.6,0.8231]
[1733293421327,10.14340972,3676.2,3674.9,0.7903]
[1733293421628,1.61528401,3676.6,3674.9,0.7903]
[1733293421629,7.42320972,3676.1,3674.9,0.7903]
[1733293421839,2.72042,3675.9,3674.9,0.7903]
[1733293423850,7.42320972,3676.1,3674.9,0.7903]
[1733293424121,3.52943097,3676.0,3674.9,0.7903]
[1733293424329,3.81190814,3676.0,3674.9,0.7903]
[1733293425993,0.25173173,3675.9,3674.9,0.7903]
[1733293426334,10.14363972,3675.9,3674.9,0.7903]
[1733293426917,7.42320972,3675.9,3674.9,0.7903]
[1733293427115,10.14363972,3675.9,3674.9,0.7903]
[1733293427341,10.74634194,3675.9,3674.9,0.7903]
[1733293427816,7.42320972,3675.9,3674.9,0.7903]
[1733293428018,7.42320972,3675.9,3675.2,0.7819]
[1733293428945,7.42320972,3675.9,3675.2,3.50281]
[1733293429254,7.42320972,3675.9,3675.2,0.7819]
[1733293429419,0.2822089,3676.0,3675.2,0.7819]
[1733293429761,0.2822089,3676.0,3675.2,1.132198]
[1733293431253,0.25235278,3675.9,3675.2,0.7819]
[1733293431455,0.2822089,3676.0,3675.2,0.7819]
[1733293431648,0.2524233,3675.9,3675.2,0.7819]
[1733293431844,0.2822089,3676.0,3675.2,0.7819]
[1733293432174,0.25242855,3675.9,3675.2,0.7819]
[1733293432392,7.70541862,3676.0,3675.2,1.132197]
[1733293432670,0.25251481,3675.9,3675.2,1.132197]
[1733293432979,7.70541862,3676.0,3675.2,1.132197]
[1733293433336,0.25250734,3675.9,3675.2,1.132197]
[1733293433645,7.70541862,3676.0,3675.2,1.132197]
[1733293433855,0.25262594,3675.9,3675.2,0.7819]
[1733293434162,8.37291862,3676.0,3675.2,0.7819]
[1733293434383,0.25263201,3675.9,3675.2,0.7819]
[1733293434678,0.25273182,3675.8,3675.2,0.7819]
[1733293434846,8.37291862,3676.0,3675.2,0.7819]
[1733293435048,0.2526991,3675.9,3675.2,0.7819]
[1733293435245,8.37291862,3676.0,3675.2,0.7819]
[1733293435547,7.67602991,3675.9,3675.2,0.7819]
[1733293435758,7.42320972,3675.9,3675.2,0.7819]
[1733293437239,0.25283122,3675.8,3675.2,0.7819]
[1733293437584,7.42320972,3675.9,3675.2,0.7819]
[1733293438441,7.42320972,3675.8,3675.2,0.7819]
[1733293439976,7.42320972,3675.8,3675.2,3.50283]
[1733293440187,7.42320972,3675.8,3675.2,1.132183]
[1733293440333,7.42320972,3675.8,3675.3,2.72085]
[1733293440539,7.42320972,3675.8,3675.2,0.7819]
[1733293440788,7.42320972,3675.8,3675.3,2.72086]
[1733293441072,7.42320972,3675.8,3675.2,0.7819]
[1733293441073,7.42320972,3675.8,3675.5,2.72071]
[1733293441432,0.2822089,3676.0,3675.6,0.7827]
[1733293441834,7.42320972,3676.1,3675.9,2.60141742]
[1733293443266,7.42320972,3676.1,3676.0,0.8075]
[1733293445665,7.42320972,3676.1,3676.0,3.52784]
[1733293447498,0.28200689,3676.6,3676.2,2.72018]
[1733293450165,0.28200689,3676.6,3676.0,0.8075]
[1733293450372,0.28200689,3676.6,3676.1,0.34089174]
[1733293451089,0.28200689,3676.6,3676.1,3.06112174]
[1733293451294,0.28200689,3676.6,3676.0,0.8075]
[1733293451592,0.94950689,3676.6,3676.0,0.8075]
[1733293452588,0.94950689,3676.6,3675.7,3.48606]
[1733293453408,7.42320972,3676.5,3675.7,3.48606]
[1733293453889,0.6675,3676.4,3675.0,3.40321742]
[1733293454187,1.09004265,3676.3,3675.2,2.7209]
[1733293454364,0.25278358,3676.2,3675.2,2.7209]
[1733293454560,0.83727166,3676.3,3675.2,2.7209]
[1733293454802,0.25278403,3676.2,3675.0,3.95963499]
[1733293454951,0.6675,3676.4,3675.5,2.72069]
[1733293455147,0.25277991,3676.3,3675.6,2.72064]
[1733293455348,0.6675,3676.4,3675.4,2.60141742]
[1733293455587,7.42320972,3676.5,3675.8,2.60141742]
[1733293455798,0.25288651,3676.4,3675.8,2.60141742]
[1733293455998,7.42320972,3676.5,3676.0,0.8327]
[1733293456152,7.42320972,3676.5,3676.1,2.72026]
[1733293456356,0.28200689,3676.6,3676.1,2.72026]
[1733293456665,0.28200689,3676.6,3676.0,0.8327]
[1733293457871,0.25294866,3676.5,3675.8,2.60141742]
[1733293458097,0.28200689,3676.6,3675.8,2.60141742]
[1733293458302,1.02349863,3676.5,3675.8,2.60141742]
[1733293458453,0.77052166,3676.5,3675.8,2.60141742]
[1733293458851,0.77052166,3676.5,3675.1,3.3959635]
[1733293458852,0.6675,3676.4,3675.4,0.7697]
[1733293459095,0.25298592,3676.3,3675.4,6.49047]
[1733293459297,0.6675,3676.4,3675.4,6.49047]
[1733293459451,7.67620924,3676.3,3675.4,0.7697]
[1733293459654,0.25299952,3676.2,3675.2,2.72093]
[1733293459875,0.2529863,3676.1,3675.2,2.72093]
[1733293460088,7.70430982,3676.3,3675.2,2.72093]
[1733293460305,0.25299254,3676.2,3675.2,2.72093]
[1733293460466,0.25299254,3676.1,3675.3,2.72086]
[1733293460673,7.70430982,3676.3,3675.3,2.72086]
[1733293460897,0.25298718,3676.2,3675.1,3.9299735]
[1733293461204,0.25298718,3676.1,3675.1,3.9299735]
[1733293461372,0.92048718,3676.0,3675.1,0.813]
[1733293461695,0.25298718,3675.9,3675.1,0.813]
[1733293461859,0.6675,3676.0,3675.1,0.813]
[1733293462058,0.25299734,3675.9,3674.9,3.13631974]
[1733293462267,0.6675,3676.0,3674.9,2.60141742]
[1733293462471,7.67620952,3675.9,3674.9,5.32256742]
[1733293462697,0.25299488,3675.8,3674.9,5.32256742]
[1733293462853,7.42320972,3675.9,3674.9,5.32256742]
[1733293463059,0.25299532,3675.8,3674.9,2.60141742]
[1733293463258,7.42320972,3675.9,3674.9,5.32256742]
[1733293463481,0.25298313,3675.8,3674.9,5.32256742]
[1733293463707,7.9076733,3675.9,3674.9,5.32256742]
[1733293464050,0.25298054,3675.8,3674.9,5.32256742]
[1733293464209,7.9076733,3675.9,3674.9,5.32256742]
[1733293464408,0.25296921,3675.8,3674.9,5.32256742]
[1733293464563,7.9076733,3675.9,3674.9,5.93461416]
[1733293464762,0.25296929,3675.8,3674.9,5.93461416]
[1733293465070,7.9076733,3675.9,3674.9,5.93461416]
[1733293465276,0.25295689,3675.8,3674.9,5.93461416]
[1733293465597,7.42320972,3675.8,3674.9,5.93461416]
[1733293466319,0.25293133,3675.7,3675.0,2.72107]
[1733293466601,7.42320972,3675.8,3674.9,3.21346416]
[1733293466602,7.42320972,3675.8,3675.1,3.39423342]
[1733293466808,7.42320972,3675.8,3675.2,2.72093]
[1733293468627,7.42320972,3675.9,3675.2,2.72093]
[1733293470010,7.42320972,3675.9,3675.1,0.67324342]
[1733293470570,7.42320972,3675.9,3675.0,2.72108]
[1733293470775,0.25301677,3675.8,3675.0,2.72108]
[1733293470968,3.6675,3675.8,3675.0,2.72108]
[1733293471231,3.6675,3675.8,3674.9,5.32257742]
[1733293472091,3.6675,3675.8,3675.0,2.72108]
[1733293472439,0.6675,3675.8,3675.1,2.72099]
[1733293473291,0.6675,3675.8,3675.0,0.58701965]
[1733293473517,0.6675,3675.8,3675.0,2.72104]
[1733293473934,7.42320972,3675.9,3675.3,3.4766]
[1733293474719,7.42320972,3675.9,3675.3,0.7558]
[1733293475129,7.70378636,3675.9,3675.3,0.7558]
[1733293476006,7.70378636,3675.9,3675.2,2.72093]
[1733293476210,0.6675,3675.8,3674.8,0.8008]
[1733293476506,0.25290056,3675.7,3674.8,0.8008]
[1733293476673,0.6675,3675.8,3674.8,0.8008]
[1733293476872,0.6675,3675.8,3674.9,2.72115]
[1733293476873,0.25292868,3675.7,3674.9,2.72115]
[1733293477072,0.6675,3675.8,3674.9,2.72115]
[1733293477275,0.25294606,3675.7,3675.0,2.72106]
[1733293477519,0.6675,3675.8,3674.9,0.4069649]
[1733293477723,0.6675,3675.8,3675.1,2.72098]
[1733293478020,0.6675,3675.8,3675.1,2.72097]
[1733293478319,0.6675,3675.8,3675.2,2.72086]
[1733293478501,0.6675,3675.8,3675.2,3.03364249]
[1733293479437,0.6675,3675.8,3674.7,0.54769903]
[1733293479590,0.25301431,3675.7,3674.7,0.54769903]
[1733293479788,0.6675,3675.8,3674.7,0.54769903]
[1733293479988,0.25302035,3675.7,3674.7,0.54769903]
[1733293480204,0.6675,3675.8,3675.0,2.72107]
[1733293480419,7.42320972,3675.7,3675.0,2.72107]
[1733293480800,7.42320972,3675.7,3674.8,2.72123]
[1733293481126,7.42320972,3675.7,3674.9,0.3268929]
[1733293481340,7.42320972,3675.7,3674.9,3.0480229]
[1733293482217,7.42320972,3675.7,3674.9,0.3268929]
[1733293483034,7.42320972,3675.7,3675.0,2.72108]
[1733293483232,7.42320972,3675.7,3675.0,3.52098]
[1733293485627,7.42320972,3675.7,3675.1,2.72097]
[1733293486441,8.09070972,3675.8,3675.1,2.72097]
[1733293486664,0.25330876,3675.7,3675.1,2.72097]
[1733293486869,8.09070972,3675.8,3675.1,2.72097]
[1733293487225,0.25341709,3675.7,3675.1,2.72097]
[1733293487431,8.09070972,3675.8,3675.3,2.72086]
[1733293487632,0.2534163,3675.7,3675.3,2.72086]
[1733293487842,8.09070972,3675.8,3675.3,2.72086]